Workbook

Sheet Disclaimer (hidden)
B2: Legal disclaimer
B3: Please fully read this disclaimer before using this model
E34: www.lentransolutions.com | T34: Level 8, Suite 3, 234 George Street, NSW 2000
E35: contact@lentransolutions.com | T35: ABN: 66 615 474 523

Sheet Title
C12: =Model_Name -> Project Finance Ratios
C13: LMS Tutorial
C14: Sydney, February 2017
E34: www.lentransolutions.com | T34: Level 8, Suite 3, 234 George Street, NSW 2000
E35: contact@lentransolutions.com | T35: ABN: 66 615 474 523

Sheet Inputs
C1: Assumptions
C2: ="Tutorial: "&Model_Name -> Tutorial: Project Finance Ratios
C6: Tutorial inputs
C7: Operations
C8: Year | E8: 1 | F8: =E8+1 -> 2 | G8: =F8+1 -> 3 | H8: 4 | I8: 5 | J8: 6 | K8: 7 | L8: =K8+1 -> 8 | M8: 9 | N8: 10
C9: Cashflow available for debt service (CFADS) | D9: AUD '000 | E9: 130 | F9: 128 | G9: 115 | H9: 132 | I9: 137 | J9: 126 | K9: 135
C11: Debt
C12: Remaining loan life | D12: Years | E12: 5
C13: Opening balance | D13: AUD '000 | E13: 300
C15: Year | E15: 1 | F15: =E15+1 -> 2 | G15: =F15+1 -> 3 | H15: 4 | I15: 5 | J15: 6 | K15: 7 | L15: =K15+1 -> 8 | M15: 9 | N15: 10
C16: Principal repayment | D16: AUD '000 | E16: 80 | F16: 70 | G16: 60 | H16: 50 | I16: 40
C17: All in rate | D17: % p.a | E17: 0.06 | F17: 0.06 | G17: 0.06 | H17: 0.06 | I17: 0.06 | J17: 0.06 | K17: 0.06 | L17: 0.06 | M17: 0.06 | N17: 0.06
C19: Ratios
C20: Remaining project life | D20: Years | E20: 7
C21: Discount rate (post loan life) | D21: % p.a | E21: 0.07
C23: Technical inputs
C24: General
C25: Tutorial name | D25: Name | E25: Project Finance Ratios

Sheet Calcs
C1: Calculations
C2: ="Tutorial: "&Model_Name -> Tutorial: Project Finance Ratios
C3: Forecast year | D3: Num | H3: =G3+1 -> 1 | I3: =H3+1 -> 2 | J3: 3 | K3: 4 | L3: 5 | M3: 6 | N3: 7 | O3: =N3+1 -> 8 | P3: =O3+1 -> 9 | Q3: =P3+1 -> 10
C5: Key calculations
C6: Debt repayments
C7: CFADS | D7: AUD M | G7: =SUM(H7:Q7) -> 300 | H7: =LOOKUP(H$3,Inputs!$E$15:$N$15,Inputs!$E16:$N16) -> 80 | I7: =LOOKUP(I$3,Inputs!$E$15:$N$15,Inputs!$E16:$N16) -> 70 | J7: =LOOKUP(J$3,Inputs!$E$15:$N$15,Inputs!$E16:$N16) -> 60 | K7: =LOOKUP(K$3,Inputs!$E$15:$N$15,Inputs!$E16:$N16) -> 50 | L7: =LOOKUP(L$3,Inputs!$E$15:$N$15,Inputs!$E16:$N16) -> 40 | M7: =LOOKUP(M$3,Inputs!$E$15:$N$15,Inputs!$E16:$N16) -> 0 | N7: =LOOKUP(N$3,Inputs!$E$15:$N$15,Inputs!$E16:$N16) -> 0 | O7: =LOOKUP(O$3,Inputs!$E$15:$N$15,Inputs!$E16:$N16) -> 0 | P7: =LOOKUP(P$3,Inputs!$E$15:$N$15,Inputs!$E16:$N16) -> 0 | Q7: =LOOKUP(Q$3,Inputs!$E$15:$N$15,Inputs!$E16:$N16) -> 0
C9: Remaining loan life | D9: B.Flag | E9: =Inputs!E12 -> 5 | H9: =IF(H$3<=$E9,1,0) -> 1 | I9: =IF(I$3<=$E9,1,0) -> 1 | J9: 1 | K9: 1 | L9: 1 | M9: 0 | N9: 0 | O9: 0 | P9: 0 | Q9: 0
C11: Balance b/f | D11: AUD M | H11: =G13 -> 300 | I11: =H13 -> 220 | J11: 150 | K11: 90 | L11: 40 | M11: 0 | N11: 0 | O11: 0 | P11: 0 | Q11: 0
C12: Principal repayment | D12: AUD M | G12: =SUM(H12:Q12) -> -300 | H12: =-LOOKUP(H$3,Inputs!$E$15:$N$15,Inputs!$E16:$N16)*H9 -> -80 | I12: =-LOOKUP(I$3,Inputs!$E$15:$N$15,Inputs!$E16:$N16)*I9 -> -70 | J12: =-LOOKUP(J$3,Inputs!$E$15:$N$15,Inputs!$E16:$N16)*J9 -> -60 | K12: =-LOOKUP(K$3,Inputs!$E$15:$N$15,Inputs!$E16:$N16)*K9 -> -50 | L12: =-LOOKUP(L$3,Inputs!$E$15:$N$15,Inputs!$E16:$N16)*L9 -> -40 | M12: =-LOOKUP(M$3,Inputs!$E$15:$N$15,Inputs!$E16:$N16)*M9 -> 0 | N12: =-LOOKUP(N$3,Inputs!$E$15:$N$15,Inputs!$E16:$N16)*N9 -> 0 | O12: =-LOOKUP(O$3,Inputs!$E$15:$N$15,Inputs!$E16:$N16)*O9 -> 0 | P12: =-LOOKUP(P$3,Inputs!$E$15:$N$15,Inputs!$E16:$N16)*P9 -> 0 | Q12: =-LOOKUP(Q$3,Inputs!$E$15:$N$15,Inputs!$E16:$N16)*Q9 -> 0
C13: Balance c/f | D13: AUD M | G13: =Inputs!E13 -> 300 | H13: =SUM(H11:H12) -> 220 | I13: =SUM(I11:I12) -> 150 | J13: 90 | K13: 40 | L13: 0 | M13: 0 | N13: 0 | O13: 0 | P13: 0 | Q13: 0
C15: Interest
C16: All in rate | D16: % p.a | H16: =LOOKUP(H$3,Inputs!$E$15:$N$15,Inputs!$E17:$N17)*H9 -> 0.06 | I16: =LOOKUP(I$3,Inputs!$E$15:$N$15,Inputs!$E17:$N17)*I9 -> 0.06 | J16: =LOOKUP(J$3,Inputs!$E$15:$N$15,Inputs!$E17:$N17)*J9 -> 0.06 | K16: =LOOKUP(K$3,Inputs!$E$15:$N$15,Inputs!$E17:$N17)*K9 -> 0.06 | L16: =LOOKUP(L$3,Inputs!$E$15:$N$15,Inputs!$E17:$N17)*L9 -> 0.06 | M16: =LOOKUP(M$3,Inputs!$E$15:$N$15,Inputs!$E17:$N17)*M9 -> 0 | N16: =LOOKUP(N$3,Inputs!$E$15:$N$15,Inputs!$E17:$N17)*N9 -> 0 | O16: =LOOKUP(O$3,Inputs!$E$15:$N$15,Inputs!$E17:$N17)*O9 -> 0 | P16: =LOOKUP(P$3,Inputs!$E$15:$N$15,Inputs!$E17:$N17)*P9 -> 0 | Q16: =LOOKUP(Q$3,Inputs!$E$15:$N$15,Inputs!$E17:$N17)*Q9 -> 0
C17: Interest | D17: AUD M | G17: =SUM(H17:Q17) -> 48 | H17: =H11*H16 -> 18 | I17: =I11*I16 -> 13.2 | J17: 9 | K17: 5.4 | L17: 2.4 | M17: 0 | N17: 0 | O17: 0 | P17: 0 | Q17: 0
C19: DSCR
C20: CFADS | D20: AUD M | G20: =SUM(H20:Q20) -> 903 | H20: =LOOKUP(H$3,Inputs!$E$8:$N$8,Inputs!$E9:$N9) -> 130 | I20: =LOOKUP(I$3,Inputs!$E$8:$N$8,Inputs!$E9:$N9) -> 128 | J20: =LOOKUP(J$3,Inputs!$E$8:$N$8,Inputs!$E9:$N9) -> 115 | K20: =LOOKUP(K$3,Inputs!$E$8:$N$8,Inputs!$E9:$N9) -> 132 | L20: =LOOKUP(L$3,Inputs!$E$8:$N$8,Inputs!$E9:$N9) -> 137 | M20: =LOOKUP(M$3,Inputs!$E$8:$N$8,Inputs!$E9:$N9) -> 126 | N20: =LOOKUP(N$3,Inputs!$E$8:$N$8,Inputs!$E9:$N9) -> 135 | O20: =LOOKUP(O$3,Inputs!$E$8:$N$8,Inputs!$E9:$N9) -> 0 | P20: =LOOKUP(P$3,Inputs!$E$8:$N$8,Inputs!$E9:$N9) -> 0 | Q20: =LOOKUP(Q$3,Inputs!$E$8:$N$8,Inputs!$E9:$N9) -> 0
C21: Qualifying CFADS | D21: AUD M | G21: =SUM(H21:Q21) -> 642 | H21: =H9*H20 -> 130 | I21: =I9*I20 -> 128 | J21: 115 | K21: 132 | L21: 137 | M21: 0 | N21: 0 | O21: 0 | P21: 0 | Q21: 0
C23: Interest | D23: AUD M | G23: =SUM(H23:Q23) -> 48 | H23: =H17 -> 18 | I23: 13.2 | J23: 9 | K23: 5.4 | L23: 2.4 | M23: 0 | N23: 0 | O23: 0 | P23: 0 | Q23: 0
C24: Principal repayment | D24: AUD M | G24: 300 | H24: =-H12 -> 80 | I24: 70 | J24: 60 | K24: 50 | L24: 40 | M24: 0 | N24: 0 | O24: 0 | P24: 0 | Q24: 0
C25: Total debt service | D25: AUD M | G25: 348 | H25: =SUM(H23:H24) -> 98 | I25: =SUM(I23:I24) -> 83.2 | J25: 69 | K25: 55.4 | L25: 42.4 | M25: 0 | N25: 0 | O25: 0 | P25: 0 | Q25: 0
E26: Min | F26: Average
C27: Debt service cover ratio (DSCR) | D27: x | E27: =MIN(IF(H27:Q27<>0,H27:Q27)) -> 1.326530612 | F27: =G21 / G25 -> 1.844827586 | H27: =IF(H25=0,0,H20/H25) -> 1.326530612 | I27: 1.538461538 | J27: 1.666666667 | K27: 2.38267148 | L27: 3.231132075 | M27: 0 | N27: 0 | O27: 0 | P27: 0 | Q27: 0
C29: LLCR
C30: Qualifying CFADS | D30: AUD M | G30: =SUM(H30:Q30) -> 642 | H30: =H21 -> 130 | I30: 128 | J30: 115 | K30: 132 | L30: 137 | M30: 0 | N30: 0 | O30: 0 | P30: 0 | Q30: 0
C32: All in rate | D32: % p.a | H32: =H16 -> 0.06 | I32: 0.06 | J32: 0.06 | K32: 0.06 | L32: 0.06 | M32: 0 | N32: 0 | O32: 0 | P32: 0 | Q32: 0
C33: 1+r | D33: Factor | H33: =1+H32 -> 1.06 | I33: =1+I32 -> 1.06 | J33: 1.06 | K33: 1.06 | L33: 1.06 | M33: 1 | N33: 1 | O33: 1 | P33: 1 | Q33: 1
C35: NPV of CFADS (start of period) | D35: AUD M | H35: =(H30+I35)/H33 -> 540.0480045 | I35: =(I30+J35)/I33 -> 442.4508848 | J35: 340.9979379 | K35: 246.4578142 | L35: 129.245283 | M35: 0 | N35: 0 | O35: 0 | P35: 0 | Q35: 0
C37: Opening debt balance | D37: AUD M | H37: =H$11 -> 300 | I37: =I$11 -> 220 | J37: 150 | K37: 90 | L37: 40 | M37: 0 | N37: 0 | O37: 0 | P37: 0 | Q37: 0
E38: Min
C39: Loan life coverage ratio (LLCR) | D39: x | E39: =MIN(IF(H39:Q39<>0,H39:Q39)) -> 1.800160015 | H39: =IF(H37=0,0,H35/H37) -> 1.800160015 | I39: =IF(I37=0,0,I35/I37) -> 2.011140385 | J39: 2.273319586 | K39: 2.738420157 | L39: 3.231132075 | M39: 0 | N39: 0 | O39: 0 | P39: 0 | Q39: 0
C41: PLCR
C42: Project life | D42: B.Flag | E42: =Inputs!E20 -> 7 | H42: =IF(H$3<=$E42,1,0) -> 1 | I42: =IF(I$3<=$E42,1,0) -> 1 | J42: 1 | K42: 1 | L42: 1 | M42: 1 | N42: 1 | O42: 0 | P42: 0 | Q42: 0
C43: Qualifying CFADS | D43: AUD M | H43: =H20*H42 -> 130 | I43: 128 | J43: 115 | K43: 132 | L43: 137 | M43: 126 | N43: 135 | O43: 0 | P43: 0 | Q43: 0
C45: All in rate | D45: % p.a | H45: =H32 -> 0.06 | I45: =I32 -> 0.06 | J45: 0.06 | K45: 0.06 | L45: 0.06 | M45: 0 | N45: 0 | O45: 0 | P45: 0 | Q45: 0
C46: =Inputs!C21 -> Discount rate (post loan life) | D46: % p.a | E46: =Inputs!E21 -> 0.07 | H46: =IF(H45>0,0,$E46)*H42 -> 0 | I46: =IF(I45>0,0,$E46)*I42 -> 0 | J46: 0 | K46: 0 | L46: 0 | M46: 0.07 | N46: 0.07 | O46: 0 | P46: 0 | Q46: 0
C47: Discount rate (applied) | D47: % p.a | H47: =SUM(H45:H46) -> 0.06 | I47: =SUM(I45:I46) -> 0.06 | J47: 0.06 | K47: 0.06 | L47: 0.06 | M47: 0.07 | N47: 0.07 | O47: 0 | P47: 0 | Q47: 0
C48: 1+r | D48: Factor | H48: =1+H47 -> 1.06 | I48: =1+I47 -> 1.06 | J48: 1.06 | K48: 1.06 | L48: 1.06 | M48: 1.07 | N48: 1.07 | O48: 1 | P48: 1 | Q48: 1
C50: NPV of CFADS (start of period) | D50: AUD M | H50: =(H43+I50)/H48 -> 716.155263 | I50: =(I43+J50)/I48 -> 629.1245788 | J50: 538.8720535 | K50: 456.2043767 | L50: 351.5766393 | M50: 235.6712377 | N50: 126.1682243 | O50: 0 | P50: 0 | Q50: 0
C52: Debt balance (balance b/f) | D52: AUD M | H52: =H$11 -> 300 | I52: =I$11 -> 220 | J52: 150 | K52: 90 | L52: 40 | M52: 0 | N52: 0 | O52: 0 | P52: 0 | Q52: 0
E53: Min
C54: Project life coverage ratio (PLCR) | D54: x | E54: =MIN(IF(H54:Q54<>0,H54:Q54)) -> 2.38718421 | H54: =IF(H52=0,0,H50/H52) -> 2.38718421 | I54: =IF(I52=0,0,I50/I52) -> 2.859657176 | J54: 3.592480357 | K54: 5.068937519 | L54: 8.789415983 | M54: 0 | N54: 0 | O54: 0 | P54: 0 | Q54: 0
